fUSD/lending_fUSD_20260521
["ID","MTS","AMOUNT","RATE_DAILY","PERIOD"]
[422748919,1779348645000,-275.02024461,0.00022679,2]
[422748915,1779348645000,-500.0,0.00022569,2]
[422748917,1779348645000,-151.0,0.00022624,2]
[422748912,1779348645000,-500.0,0.00022514,2]
[422748916,1779348645000,-151.0,0.00022569,2]
[422748918,1779348645000,-151.0,0.00022679,2]
[422748921,1779348645000,-8090.86,0.00022691,2]
[422748920,1779348645000,-329.24,0.00022691,2]
[422748922,1779348645000,-268.0,0.00022694,2]
[422748924,1779348645000,-2000.0,0.00022702,2]
[422748867,1779348645000,-625.0,0.0002224,2]
[422748926,1779348645000,-2000.0,0.00022702,2]
[422748894,1779348645000,-152.0,0.00022459,2]
[422748895,1779348645000,-152.0,0.00022459,2]
[422748925,1779348645000,-2000.0,0.00022702,2]
[422748892,1779348645000,-743.50770149,0.00022459,2]
[422748893,1779348645000,-152.0,0.00022459,2]
[422748869,1779348645000,-1934.38338736,0.00022315,2]
[422748871,1779348645000,-151.0,0.00022459,2]
[422748873,1779348645000,-151.0,0.00022459,2]
[422748870,1779348645000,-774.4,0.00022353,2]
[422748874,1779348645000,-500.0,0.00022459,2]
[422748872,1779348645000,-151.0,0.00022459,2]
[422748876,1779348645000,-198.68495232,0.00022459,2]
[422748881,1779348645000,-578.20924308,0.00022459,2]
[422748878,1779348645000,-200.0,0.00022459,2]
[422748879,1779348645000,-7965.41053267,0.00022459,2]
[422748880,1779348645000,-257.34460761,0.00022459,2]
[422748885,1779348645000,-174.61919141,0.00022459,2]
[422748868,1779348645000,-200.0,0.00022315,2]
[422748882,1779348645000,-1191.11104074,0.00022459,2]
[422748877,1779348645000,-279.9045709,0.00022459,2]
[422748897,1779348645000,-1000.0,0.00022459,2]
[422748896,1779348645000,-152.0,0.00022459,2]
[422748890,1779348645000,-174.61919141,0.00022459,2]
[422748898,1779348645000,-152.0,0.00022459,2]
[422748889,1779348645000,-174.61919141,0.00022459,2]
[422748888,1779348645000,-174.61919141,0.00022459,2]
[422748886,1779348645000,-578.20924308,0.00022459,2]
[422748891,1779348645000,-152.0,0.00022459,2]
[422748884,1779348645000,-174.61919141,0.00022459,2]
[422748883,1779348645000,-601.3376128,0.00022459,2]
[422748887,1779348645000,-151.0,0.00022459,2]
[422748963,1779348646000,-181.08010149,0.00023007,2]
[422748967,1779348646000,-181.08010149,0.00023007,2]
[422748964,1779348646000,-296.47189341,0.00023007,2]
[422748971,1779348646000,-500.0,0.0002341,2]
[422748955,1779348646000,-582.0,0.00023,2]
[422748970,1779348646000,-150.0,0.00023191,21]
[422748959,1779348646000,-290.26104002,0.00023007,2]
[422748960,1779348646000,-200.0,0.00023007,2]
[422748962,1779348646000,-1235.18214925,0.00023007,2]
[422748954,1779348646000,-205.0,0.00023,2]
[422748972,1779348646000,-200.0,0.00023411,2]
[422748969,1779348646000,-200.0,0.00023029,2]
[422748976,1779348646000,-544.63,0.00023505,2]
[422748966,1779348646000,-181.08010149,0.00023007,2]
[422748974,1779348646000,-20801.37718512,0.0002343,2]
[422748973,1779348646000,-2080.17592889,0.00023411,2]
[422748975,1779348646000,-544.63,0.00023505,2]
[422748982,1779348646000,-1831.76,0.00023505,2]
[422748983,1779348646000,-301.0006985,0.00023555,2]
[422748977,1779348646000,-544.63,0.00023505,2]
[422748979,1779348646000,-1831.76,0.00023505,2]
[422748978,1779348646000,-544.63,0.00023505,2]
[422748981,1779348646000,-1831.76,0.00023505,2]
[422748952,1779348646000,-1296.0,0.00023,2]
[422748980,1779348646000,-1831.76,0.00023505,2]
[422748968,1779348646000,-771.01748644,0.00023007,2]
[422748951,1779348646000,-324.0,0.00023,2]
[422748944,1779348646000,-864.0,0.00022773,2]
[422748950,1779348646000,-157.0,0.00023,2]
[422748985,1779348646000,-1280.88388877,0.00023555,2]
[422748931,1779348646000,-2000.0,0.00022702,2]
[422748927,1779348646000,-2000.0,0.00022702,2]
[422748928,1779348646000,-2000.0,0.00022702,2]
[422748933,1779348646000,-2000.0,0.00022702,2]
[422748930,1779348646000,-2000.0,0.00022702,2]
[422748934,1779348646000,-207.91461773,0.00022734,2]
[422748929,1779348646000,-2000.0,0.00022702,2]
[422748932,1779348646000,-2000.0,0.00022702,2]
[422748936,1779348646000,-1250.0,0.00022773,2]
[422748942,1779348646000,-1250.0,0.00022773,2]
[422748935,1779348646000,-1250.0,0.00022773,2]
[422748953,1779348646000,-159.0,0.00023,2]
[422748940,1779348646000,-1250.0,0.00022773,2]
[422748943,1779348646000,-1250.0,0.00022773,2]
[422748939,1779348646000,-1250.0,0.00022773,2]
[422748938,1779348646000,-1250.0,0.00022773,2]
[422748941,1779348646000,-1250.0,0.00022773,2]
[422748946,1779348646000,-2005.9555727,0.00022863,2]
[422748945,1779348646000,-200.0,0.00022863,2]
[422748956,1779348646000,-159.0,0.00023,2]
[422748949,1779348646000,-2626.98788334,0.00022997,2]
[422748958,1779348646000,-437.0,0.00023,2]
[422748947,1779348646000,-2300.0,0.000229,8]
[422748957,1779348646000,-155.40972659,0.00023,2]
[422748948,1779348646000,-520.0,0.00022948,2]
[422748937,1779348646000,-1250.0,0.00022773,2]
[422748984,1779348646000,-200.0,0.00023555,2]
[422749025,1779348646000,-437.0,0.00024,2]
[422748986,1779348646000,-187.78006524,0.00023555,2]
[422749016,1779348646000,-2000.0,0.00024,2]
[422749030,1779348646000,-194.72792766,0.00024103,2]
[422749020,1779348646000,-1296.0,0.00024,2]
[422749019,1779348646000,-324.0,0.00024,2]
[422749028,1779348646000,-200.0,0.00024103,2]
[422749023,1779348646000,-582.0,0.00024,2]
[422749021,1779348646000,-159.0,0.00024,2]
[422749022,1779348646000,-205.0,0.00024,2]
[422749027,1779348646000,-312.13772435,0.00024103,2]
[422749024,1779348646000,-159.0,0.00024,2]
[422749026,1779348646000,-5530.0,0.00024,5]
[422749029,1779348646000,-1306.96451697,0.00024103,2]
[422749017,1779348646000,-500.0,0.00024,2]
[422749031,1779348646000,-194.72792766,0.00024103,2]
[422749042,1779348646000,-200.0,0.00024612,2]
[422749041,1779348646000,-437.4,0.00024596,2]
[422749036,1779348646000,-2000.0,0.00024444,7]
[422749038,1779348646000,-2236.95670847,0.00024507,2]
[422749033,1779348646000,-829.12830338,0.00024103,2]
[422749034,1779348646000,-774.4,0.00024324,2]
[422749037,1779348646000,-200.0,0.00024507,2]
[422749040,1779348646000,-450.0,0.00024596,2]
[422749035,1779348646000,-310.59536388,0.00024397,2]
[422749039,1779348646000,-353.796272,0.00024591,2]
[422749043,1779348646000,-323.68682015,0.00024651,2]
[422748990,1779348646000,-24627.0,0.000236,2]
[422749032,1779348646000,-194.72792766,0.00024103,2]
[422749011,1779348646000,-2000.0,0.0002399,2]
[422749044,1779348646000,-200.0,0.00024651,2]
[422749014,1779348646000,-405.27342597,0.00024,2]
[422749012,1779348646000,-2000.0,0.0002399,2]
[422748989,1779348646000,-799.54513344,0.00023555,2]
[422748988,1779348646000,-187.78006524,0.00023555,2]
[422748991,1779348646000,-926.0,0.00023723,5]
[422748993,1779348646000,-230.25806667,0.00023744,2]
[422748994,1779348646000,-520.0,0.00023769,2]
[422748992,1779348646000,-748.0,0.00023723,5]
[422749004,1779348646000,-401.30148619,0.0002395,2]
[422749005,1779348646000,-200.0,0.00023959,2]
[422748995,1779348646000,-505.82405856,0.0002377,7]
[422749006,1779348646000,-2157.14243826,0.00023959,2]
[422748997,1779348646000,-7798.87221343,0.00023801,2]
[422749003,1779348646000,-356.70006223,0.0002386,7]
[422748987,1779348646000,-187.78006524,0.00023555,2]
[422749001,1779348646000,-279.61406486,0.00023831,2]
[422748996,1779348646000,-5530.0,0.000238,3]
[422749010,1779348646000,-457.70063694,0.0002398,2]
[422749015,1779348646000,-2000.0,0.00024,2]
[422749009,1779348646000,-2000.0,0.0002398,2]
[422749018,1779348646000,-165.0,0.00024,2]
[422749007,1779348646000,-2000.0,0.0002396,2]
[422748999,1779348646000,-200.0,0.00023821,2]
[422749013,1779348646000,-945.63799394,0.00024,2]
[422749002,1779348646000,-372.46995973,0.00023856,7]
[422749000,1779348646000,-156.587,0.00023828,2]
[422748998,1779348646000,-9602.59612673,0.00023801,2]
[422749008,1779348646000,-2000.0,0.0002397,2]
[422749084,1779348647000,-209.40437684,0.00025199,2]
[422749083,1779348647000,-209.40437684,0.00025199,2]
[422749090,1779348647000,-180.62360464,0.00025368,2]
[422749081,1779348647000,-200.0,0.00025199,2]
[422749070,1779348647000,-172.79799207,0.00025,2]
[422749079,1779348647000,-599.60298507,0.00025198,2]
[422749071,1779348647000,-542266.32909668,0.00025,2]
[422749075,1779348647000,-1107.566622,0.0002508,2]
[422749089,1779348647000,-625.0,0.0002524,2]
[422749072,1779348647000,-437.31142798,0.00025,2]
[422749082,1779348647000,-335.66323249,0.00025199,2]
[422749080,1779348647000,-623.58710447,0.00025198,2]
[422749092,1779348647000,-301896.7541666,0.00025369,2]
[422749085,1779348647000,-891.61887448,0.00025199,2]
[422749087,1779348647000,-150.0,0.0002524,2]
[422749088,1779348647000,-3631.0,0.0002524,2]
[422749093,1779348647000,-2228.154995,0.00025369,2]
[422749094,1779348647000,-25597.224188,0.00025369,2]
[422749096,1779348647000,-7798.87221343,0.00025416,2]
[422749095,1779348647000,-200.0,0.00025404,2]
[422749098,1779348647000,-189.36,0.000255,2]
[422749108,1779348647000,-2427.02,0.00025786,2]
[422749109,1779348647000,-1530.02,0.00025786,2]
[422749074,1779348647000,-2319.72410669,0.00025055,2]
[422749097,1779348647000,-9602.59612673,0.00025416,2]
[422749086,1779348647000,-1271.0,0.0002524,2]
[422749073,1779348647000,-200.0,0.00025055,2]
[422749057,1779348647000,-150.0,0.00025,2]
[422749068,1779348647000,-219.27102398,0.00025,2]
[422749099,1779348647000,-3522.26,0.000255,2]
[422749054,1779348647000,-499.74,0.00024658,2]
[422749045,1779348647000,-201.93286098,0.00024651,2]
[422749048,1779348647000,-859.8060506,0.00024651,2]
[422749050,1779348647000,-151.0,0.00024658,2]
[422749047,1779348647000,-201.93286098,0.00024651,2]
[422749046,1779348647000,-244.1493329,0.00024651,2]
[422749049,1779348647000,-1000.0,0.00024658,2]
[422749051,1779348647000,-151.0,0.00024658,2]
[422749052,1779348647000,-151.0,0.00024658,2]
[422749053,1779348647000,-151.0,0.00024658,2]
[422749066,1779348647000,-1309.0,0.00025,2]
[422749069,1779348647000,-582.20577853,0.00025,2]
[422749055,1779348647000,-151.0,0.00024658,2]
[422749058,1779348647000,-150.0,0.00025,2]
[422749059,1779348647000,-150.0,0.00025,2]
[422749061,1779348647000,-150.0,0.00025,2]
[422749065,1779348647000,-326.0,0.00025,2]
[422749062,1779348647000,-150.0,0.00025,2]
[422749063,1779348647000,-150.0,0.00025,2]
[422749064,1779348647000,-246.1,0.00025,2]
[422749060,1779348647000,-150.0,0.00025,2]
[422749076,1779348647000,-232.74,0.00025146,2]
[422749077,1779348647000,-160.96,0.00025176,2]
[422749067,1779348647000,-164.34067147,0.00025,2]
[422749078,1779348647000,-162.380719,0.00025197,2]
[422749056,1779348647000,-230.25806667,0.0002481,2]
[422749104,1779348647000,-217.15233878,0.00025747,2]
[422749091,1779348647000,-21502.2527356,0.00025369,2]
[422749100,1779348647000,-200.0,0.00025603,2]
[422749131,1779348647000,-774.4,0.00026296,2]
[422749130,1779348647000,-958.81929743,0.00026295,2]
[422749144,1779348647000,-291.23702211,0.00026566,2]
[422749145,1779348647000,-1352.10533015,0.00026578,4]
[422749146,1779348647000,-500.0,0.00026582,2]
[422749147,1779348647000,-500.79225853,0.00026582,2]
[422749156,1779348647000,-233.5188934,0.00026843,2]
[422749155,1779348647000,-233.5188934,0.00026843,2]
[422749152,1779348647000,-192.62,0.000268,7]
[422749154,1779348647000,-200.0,0.00026843,2]
[422749151,1779348647000,-2586.85809042,0.00026699,2]
[422749153,1779348647000,-200.0,0.00026826,2]
[422749127,1779348647000,-200.0,0.00026295,2]
[422749150,1779348647000,-200.0,0.00026699,2]
[422749168,1779348647000,-530.0,0.00027,2]
[422749169,1779348647000,-400.0,0.00027007,2]
[422749160,1779348647000,-389.0,0.00026925,2]
[422749163,1779348647000,-4316.64587351,0.00026995,2]
[422749165,1779348647000,-210.92,0.00027,2]
[422749164,1779348647000,-2395.420893,0.00027,2]
[422749162,1779348647000,-200.0,0.00026987,2]
[422749159,1779348647000,-400.0,0.00026896,2]
[422749157,1779348647000,-994.29561143,0.00026843,2]
[422749161,1779348647000,-230.25806667,0.00026941,2]
[422749166,1779348647000,-250.0,0.00027,2]
[422749103,1779348647000,-348.0827721,0.00025747,2]
[422749158,1779348647000,-587.0,0.00026863,3]
[422749129,1779348647000,-225.18697532,0.00026295,2]
[422749148,1779348647000,-2000.0,0.00026667,7]
[422749135,1779348647000,-27873.16420907,0.000264,2]
[422749105,1779348647000,-217.15233878,0.00025747,2]
[422749133,1779348647000,-587.0,0.00026315,2]
[422749101,1779348647000,-2405.55389863,0.00025603,2]
[422749107,1779348647000,-587.0,0.00025767,2]
[422749102,1779348647000,-200.0,0.00025747,2]
[422749106,1779348647000,-924.60877283,0.00025747,2]
[422749110,1779348647000,-181.88,0.00025786,2]
[422749113,1779348647000,-609.14671376,0.0002599,2]
[422749111,1779348647000,-157.71634176,0.00025848,2]
[422749122,1779348647000,-200.0,0.00026196,2]
[422749112,1779348647000,-230.25806667,0.00025875,2]
[422749123,1779348647000,-385.28128246,0.00026247,2]
[422749121,1779348647000,-2494.55939288,0.00026151,2]
[422749120,1779348647000,-200.0,0.00026151,2]
[422749114,1779348647000,-550.0,0.00026,2]
[422749125,1779348647000,-198.47823641,0.00026247,2]
[422749128,1779348647000,-225.18697532,0.00026295,2]
[422749115,1779348647000,-4585.26684503,0.00026,2]
[422749141,1779348647000,-500.0,0.00026452,2]
[422749143,1779348647000,-2626.98788334,0.00026497,2]
[422749139,1779348647000,-500.0,0.00026452,2]
[422749126,1779348647000,-456.49421936,0.00026295,2]
[422749137,1779348647000,-166.66,0.00026451,2]
[422749119,1779348647000,-500.0,0.00026149,2]
[422749117,1779348647000,-192.15,0.00026,7]
[422749116,1779348647000,-219.4582358,0.00026,2]
[422749118,1779348647000,-200.0,0.00026133,2]
[422749167,1779348647000,-1049.79293135,0.00027,2]
[422749216,1779348648000,-2682.57183977,0.00027247,2]
[422749206,1779348648000,-400.0,0.00027171,2]
[422749211,1779348648000,-400.0,0.00027195,2]
[422749212,1779348648000,-400.0,0.00027197,2]
[422749209,1779348648000,-439.0,0.00027182,2]
[422749195,1779348648000,-2000.0,0.00027158,2]
[422749207,1779348648000,-439.0,0.00027173,2]
[422749205,1779348648000,-457.8920984,0.00027164,2]
[422749200,1779348648000,-600.0,0.00027158,2]
[422749203,1779348648000,-600.0,0.00027158,2]
[422749208,1779348648000,-200.0,0.00027177,2]
[422749217,1779348648000,-439.0,0.00027258,2]
[422749213,1779348648000,-439.0,0.00027228,2]
[422749226,1779348648000,-400.0,0.00027303,2]
[422749215,1779348648000,-439.0,0.0002724,2]
[422749214,1779348648000,-439.0,0.00027235,2]
[422749219,1779348648000,-550.0,0.00027259,2]
[422749229,1779348648000,-439.0,0.00027318,2]
[422749221,1779348648000,-550.0,0.00027259,2]
[422749224,1779348648000,-400.0,0.00027261,2]
[422749218,1779348648000,-550.0,0.00027259,2]
[422749220,1779348648000,-550.0,0.00027259,2]
[422749230,1779348648000,-166.66,0.00027324,2]
[422749223,1779348648000,-278.0,0.00027259,2]
[422749222,1779348648000,-550.0,0.00027259,2]
[422749196,1779348648000,-2000.0,0.00027158,2]
[422749210,1779348648000,-400.0,0.00027194,2]
[422749198,1779348648000,-600.0,0.00027158,2]
[422749170,1779348648000,-685.58487795,0.00027028,2]
[422749201,1779348648000,-600.0,0.00027158,2]
[422749228,1779348648000,-389.0,0.00027309,2]
[422749172,1779348648000,-7798.87221343,0.00027031,2]
[422749176,1779348648000,-439.0,0.00027072,2]
[422749173,1779348648000,-9602.59612673,0.00027031,2]
[422749171,1779348648000,-201.34257484,0.00027028,2]
[422749175,1779348648000,-350.0,0.00027051,3]
[422749179,1779348648000,-1850.0,0.00027086,2]
[422749181,1779348648000,-400.0,0.00027089,2]
[422749178,1779348648000,-389.0,0.00027083,2]
[422749180,1779348648000,-1843.0,0.00027086,2]
[422749177,1779348648000,-447.0,0.00027081,2]
[422749183,1779348648000,-194.44445,0.0002712,2]
[422749188,1779348648000,-544.63,0.00027129,2]
[422749189,1779348648000,-1831.76,0.00027129,2]
[422749182,1779348648000,-194.44444,0.0002712,2]
[422749184,1779348648000,-194.44444,0.0002712,2]
[422749187,1779348648000,-194.44445,0.0002712,2]
[422749185,1779348648000,-194.44444,0.0002712,2]
[422749193,1779348648000,-400.0,0.00027156,2]
[422749186,1779348648000,-194.44444,0.0002712,2]
[422749191,1779348648000,-389.0,0.00027131,2]
[422749190,1779348648000,-105180.46895711,0.0002713,2]
[422749192,1779348648000,-400.0,0.00027136,2]
[422749197,1779348648000,-600.0,0.00027158,2]
[422749194,1779348648000,-389.0,0.00027157,2]
[422749204,1779348648000,-302.0,0.00027158,2]
[422749202,1779348648000,-600.0,0.00027158,2]
[422749199,1779348648000,-600.0,0.00027158,2]
[422749225,1779348648000,-439.0,0.00027297,2]
[422749174,1779348648000,-439.0,0.00027038,2]
[422749232,1779348648000,-439.0,0.00027336,2]
[422749261,1779348648000,-1500.0,0.00027397,2]
[422749264,1779348648000,-151.0,0.00027397,2]
[422749258,1779348648000,-193.88866467,0.00027397,2]
[422749262,1779348648000,-1019.12,0.00027397,2]
[422749265,1779348648000,-151.0,0.00027397,2]
[422749263,1779348648000,-151.0,0.00027397,2]
[422749269,1779348648000,-151.0,0.00027397,2]
[422749272,1779348648000,-151.0,0.00027397,2]
[422749275,1779348648000,-151.0,0.00027397,2]
[422749273,1779348648000,-151.0,0.00027397,2]
[422749271,1779348648000,-151.0,0.00027397,2]
[422749274,1779348648000,-151.0,0.00027397,2]
[422749277,1779348648000,-151.0,0.00027397,2]
[422749279,1779348648000,-151.0,0.00027397,2]
[422749276,1779348648000,-151.0,0.00027397,2]
[422749278,1779348648000,-151.0,0.00027397,2]
[422749270,1779348648000,-151.0,0.00027397,2]
[422749281,1779348648000,-290.943256,0.00027397,2]
[422749289,1779348648000,-169.68558,0.00027397,2]
[422749290,1779348648000,-169.68558,0.00027397,2]
[422749280,1779348648000,-151.0,0.00027397,2]
[422749282,1779348648000,-527.08,0.00027397,2]
[422749284,1779348648000,-151.0,0.00027397,2]
[422749285,1779348648000,-151.0,0.00027397,2]
[422749287,1779348648000,-169.68558,0.00027397,2]
[422749286,1779348648000,-224.3891,0.00027397,2]
[422749283,1779348648000,-151.0,0.00027397,2]
[422749260,1779348648000,-298.48,0.00027397,2]
[422749266,1779348648000,-300.0,0.00027397,2]
[422749288,1779348648000,-169.68558,0.00027397,2]
[422749256,1779348648000,-209.10498441,0.00027397,2]
[422749259,1779348648000,-1407.88,0.00027397,2]
[422749242,1779348648000,-242.15909246,0.00027391,2]
[422749231,1779348648000,-389.0,0.00027335,2]
[422749233,1779348648000,-439.0,0.00027362,2]
[422749234,1779348648000,-389.0,0.00027367,2]
[422749241,1779348648000,-200.0,0.00027391,2]
[422749238,1779348648000,-439.0,0.00027383,2]
[422749236,1779348648000,-439.0,0.00027378,2]
[422749235,1779348648000,-350.0,0.00027374,5]
[422749240,1779348648000,-8242.84749432,0.0002739,2]
[422749237,1779348648000,-439.0,0.00027382,2]
[422749239,1779348648000,-4172.46341072,0.0002739,2]
[422749243,1779348648000,-324.90158559,0.00027391,2]
[422749246,1779348648000,-171.77,0.00027391,13]
[422749227,1779348648000,-389.0,0.00027305,2]
[422749247,1779348648000,-219.45,0.00027397,2]
[422749254,1779348648000,-1000.0,0.00027397,2]
[422749257,1779348648000,-151.52628247,0.00027397,2]
[422749253,1779348648000,-1000.0,0.00027397,2]
[422749251,1779348648000,-1000.0,0.00027397,2]
[422749250,1779348648000,-1000.0,0.00027397,2]
[422749268,1779348648000,-151.0,0.00027397,2]
[422749249,1779348648000,-1000.0,0.00027397,2]
[422749245,1779348648000,-171.77,0.00027391,13]
[422749252,1779348648000,-1000.0,0.00027397,2]
[422749267,1779348648000,-165.823714,0.00027397,2]
[422749244,1779348648000,-1031.08454906,0.00027391,2]
[422749255,1779348648000,-1000.0,0.00027397,2]
[422749248,1779348648000,-1000.0,0.00027397,2]
[422749329,1779348649000,-1093.74,0.0002758,7]
[422749332,1779348649000,-1002.01,0.0002758,7]
[422749328,1779348649000,-1093.7,0.0002755,2]
[422749321,1779348649000,-1093.74,0.0002755,2]
[422749330,1779348649000,-202.15,0.0002758,7]
[422749326,1779348649000,-202.16,0.0002755,2]
[422749323,1779348649000,-306.69,0.0002755,2]
[422749324,1779348649000,-1002.01,0.0002755,2]
[422749325,1779348649000,-306.74,0.0002755,2]
[422749327,1779348649000,-1000.65,0.0002755,2]
[422749320,1779348649000,-196.72764028,0.00027524,2]
[422749338,1779348649000,-1093.74,0.00027611,30]
[422749334,1779348649000,-202.16,0.0002758,7]
[422749335,1779348649000,-1000.65,0.0002758,7]
[422749337,1779348649000,-350.0,0.00027584,3]
[422749333,1779348649000,-306.74,0.0002758,7]
[422749322,1779348649000,-202.15,0.0002755,2]
[422749339,1779348649000,-202.15,0.00027611,30]
[422749336,1779348649000,-1093.7,0.0002758,7]
[422749341,1779348649000,-1002.01,0.00027611,30]
[422749340,1779348649000,-306.69,0.00027611,30]
[422749343,1779348649000,-202.16,0.00027611,30]
[422749342,1779348649000,-306.74,0.00027611,30]
[422749345,1779348649000,-1093.7,0.00027611,30]
[422749344,1779348649000,-1000.65,0.00027611,30]
[422749331,1779348649000,-306.69,0.0002758,7]
[422749319,1779348649000,-192.15,0.000275,7]
[422749318,1779348649000,-587.0,0.00027411,3]
[422749314,1779348649000,-267.52504667,0.00027397,30]
[422749346,1779348649000,-350.0,0.00027639,6]
[422749292,1779348649000,-169.68558,0.00027397,2]
[422749291,1779348649000,-169.68558,0.00027397,2]
[422749294,1779348649000,-169.68558,0.00027397,2]
[422749305,1779348649000,-169.68558,0.00027397,2]
[422749304,1779348649000,-169.68558,0.00027397,2]
[422749293,1779348649000,-169.68558,0.00027397,2]
[422749295,1779348649000,-169.68558,0.00027397,2]
[422749302,1779348649000,-169.68558,0.00027397,2]
[422749303,1779348649000,-169.68558,0.00027397,2]
[422749299,1779348649000,-169.68558,0.00027397,2]
[422749296,1779348649000,-169.68558,0.00027397,2]
[422749297,1779348649000,-169.68558,0.00027397,2]
[422749300,1779348649000,-169.68558,0.00027397,2]
[422749298,1779348649000,-169.68558,0.00027397,2]
[422749307,1779348649000,-151.0,0.00027397,2]
[422749306,1779348649000,-169.685572,0.00027397,2]
[422749313,1779348649000,-199.53747843,0.00027397,30]
[422749309,1779348649000,-151.0,0.00027397,2]
[422749310,1779348649000,-151.0,0.00027397,2]
[422749312,1779348649000,-31672.0,0.00027397,10]
[422749317,1779348649000,-651.0,0.000274,7]
[422749311,1779348649000,-499.74,0.00027397,2]
[422749308,1779348649000,-151.0,0.00027397,2]
[422749315,1779348649000,-180.65144948,0.00027397,30]
[422749316,1779348649000,-401.34,0.000274,7]
[422749301,1779348649000,-169.68558,0.00027397,2]
[422749349,1779348649000,-306.69,0.00027641,2]
[422749350,1779348649000,-1002.01,0.00027641,2]
[422749379,1779348649000,-1256.14,0.00027709,2]
[422749375,1779348649000,-1093.7,0.00027702,30]
[422749377,1779348649000,-1256.14,0.00027707,2]
[422749383,1779348649000,-1256.14,0.00027711,2]
[422749387,1779348649000,-306.69,0.00027733,2]
[422749389,1779348649000,-306.74,0.00027733,2]
[422749390,1779348649000,-202.16,0.00027733,2]
[422749388,1779348649000,-1002.01,0.00027733,2]
[422749385,1779348649000,-1093.74,0.00027733,2]
[422749384,1779348649000,-150.0,0.00027719,2]
[422749386,1779348649000,-202.15,0.00027733,2]
[422749392,1779348649000,-1093.7,0.00027733,2]
[422749394,1779348649000,-389.04644165,0.0002776,5]
[422749393,1779348649000,-201.55439298,0.0002776,20]
[422749396,1779348649000,-1093.74,0.00027763,7]
[422749395,1779348649000,-500.0,0.0002776,5]
[422749398,1779348649000,-306.69,0.00027763,7]
[422749399,1779348649000,-1002.01,0.00027763,7]
[422749397,1779348649000,-202.15,0.00027763,7]
[422749401,1779348649000,-202.16,0.00027763,7]
[422749404,1779348649000,-200.0,0.00027779,2]
[422749403,1779348649000,-1093.7,0.00027763,7]
[422749400,1779348649000,-306.74,0.00027763,7]
[422749402,1779348649000,-1000.65,0.00027763,7]
[422749348,1779348649000,-202.15,0.00027641,2]
[422749380,1779348649000,-1256.14,0.00027709,2]
[422749374,1779348649000,-1000.65,0.00027702,30]
[422749391,1779348649000,-1000.65,0.00027733,2]
[422749382,1779348649000,-1256.14,0.00027711,2]
[422749347,1779348649000,-1093.74,0.00027641,2]
[422749378,1779348649000,-1256.14,0.00027709,2]
[422749354,1779348649000,-1093.7,0.00027641,2]
[422749353,1779348649000,-1000.65,0.00027641,2]
[422749357,1779348649000,-306.69,0.00027672,7]
[422749356,1779348649000,-202.15,0.00027672,7]
[422749352,1779348649000,-202.16,0.00027641,2]
[422749358,1779348649000,-1002.01,0.00027672,7]
[422749355,1779348649000,-1093.74,0.00027672,7]
[422749359,1779348649000,-306.74,0.00027672,7]
[422749365,1779348649000,-150.0,0.00027675,2]
[422749368,1779348649000,-1093.74,0.00027702,30]
[422749370,1779348649000,-306.69,0.00027702,30]
[422749351,1779348649000,-306.74,0.00027641,2]
[422749381,1779348649000,-1256.17,0.00027711,2]
[422749376,1779348649000,-1256.14,0.00027707,2]